bitfinex/quotes_ETHUSD_20250331
["timestamp","ask_amount","ask_price","bid_price","bid_amount"]
[1743437806593,3.61874295,1838.4,1838.3,0.825]
[1743437807168,11.65568,1838.8,1838.3,6.26479]
[1743437807169,6.61874295,1838.6,1838.3,6.26479]
[1743437807371,3.61874295,1838.6,1838.4,0.626479]
[1743437807579,3.61874295,1838.6,1838.5,5.476]
[1743437809996,3.61874295,1839.0,1838.6,6.20857]
[1743437810170,3.61874295,1838.8,1838.6,0.7699]
[1743437810367,9.82002295,1839.2,1838.6,6.20879]
[1743437810599,3.61874295,1838.9,1838.7,6.059459]
[1743437810769,3.764,1839.2,1838.7,6.059459]
[1743437811093,3.61874295,1839.0,1838.8,5.4925815]
[1743437811287,3.61874295,1839.0,1838.9,5.475]
[1743437814402,3.61874295,1839.1,1838.9,6.3038]
[1743437814607,6.61874295,1839.1,1839.0,0.63038]
[1743437815807,3.61874295,1839.1,1839.0,0.63038]
[1743437816980,3.8243,1839.4,1839.0,0.63038]
[1743437817209,3.61874295,1839.1,1839.0,0.63038]
[1743437817979,3.61874295,1839.1,1839.0,6.06811]
[1743437818195,3.61874295,1839.1,1839.0,0.63038]
[1743437819008,3.61874295,1839.3,1839.0,0.63038]
[1743437819313,3.0,1839.2,1839.0,0.63038]
[1743437820610,3.0,1839.2,1839.0,6.0681]
[1743437821009,0.8226,1839.6,1839.2,5.43702]
[1743437821213,3.61874295,1839.4,1839.3,5.473]
[1743437821393,6.61874295,1839.4,1839.3,5.473]
[1743437823191,7.43204295,1839.4,1839.3,5.473]
[1743437823682,7.83647292,1839.4,1839.3,5.473]
[1743437824609,7.43204295,1839.4,1839.3,5.473]
[1743437824908,12.86859295,1839.4,1839.3,5.473]
[1743437825080,8.43694,1839.3,1838.8,0.7991]
[1743437825282,6.61874295,1839.0,1838.9,5.472]
[1743437826207,6.61874295,1839.0,1838.6,0.7646]
[1743437826208,3.0,1838.9,1838.6,0.7646]
[1743437826411,6.61874295,1838.8,1838.3,36.81075]
[1743437826584,3.0,1838.8,1838.4,6.2366]
[1743437826784,3.61874295,1838.7,1838.5,0.62366]
[1743437827014,3.61874295,1838.7,1838.6,5.472]
[1743437827213,6.61874295,1838.8,1838.6,5.472]
[1743437827583,6.61874295,1838.8,1838.7,5.471]
[1743437829538,3.0,1838.8,1838.7,5.471]
[1743437829702,3.0,1838.8,1838.7,6.7708]
[1743437833342,3.0,1838.6,1838.3,31.371]
[1743437833541,6.61874295,1838.6,1838.4,6.2953]
[1743437833725,6.61874295,1838.6,1838.5,5.472]
[1743437833923,6.61874295,1838.8,1838.5,6.10696885]
[1743437834119,3.61874295,1838.8,1838.5,6.10696885]
[1743437836137,3.61874295,1838.8,1838.6,0.0543824]
[1743437836342,3.61874295,1838.8,1838.5,6.10696885]
[1743437836581,3.61874295,1838.8,1838.5,11.54610885]
[1743437836745,3.61874295,1838.8,1838.6,1.20899326]
[1743437837082,3.61874295,1838.8,1838.6,1.15461088]
[1743437837290,3.61874295,1838.8,1838.6,1.20899317]
[1743437837457,3.61874295,1838.8,1838.6,1.15461088]
[1743437837781,3.61874295,1838.8,1838.6,1.20899312]
[1743437837943,3.61874295,1838.8,1838.6,1.15461088]
[1743437838146,3.0,1839.0,1838.6,1.20899313]
[1743437838489,3.61874295,1838.9,1838.7,0.8293]
[1743437838845,6.24292,1838.8,1838.5,5.472]
[1743437839044,3.61874295,1838.7,1838.5,5.472]
[1743437839860,9.05741295,1838.7,1838.5,5.472]
[1743437840792,3.61874295,1838.7,1838.5,5.472]
[1743437841662,9.05744295,1838.7,1838.5,5.472]
[1743437843098,3.61874295,1838.7,1838.5,5.472]
[1743437843259,3.61874295,1838.7,1838.3,37.61295]
[1743437843453,3.61874295,1838.7,1838.4,9.232295]
[1743437844460,4.42764295,1838.7,1838.4,9.232295]
[1743437844661,9.86628295,1838.7,1838.4,5.471]
[1743437845906,3.0,1838.4,1838.3,31.371]
[1743437846058,3.8138,1838.4,1838.3,36.842]
[1743437846257,9.25331,1838.4,1838.3,36.842]
[1743437846993,3.0,1837.9,1837.6,31.362]
[1743437847166,6.61874295,1837.8,1837.7,3.1362]
[1743437847358,6.61874295,1837.8,1837.7,8.6072]
[1743437847558,12.06017295,1837.8,1837.7,5.471]
[1743437847764,6.61874295,1837.8,1837.7,5.471]
[1743437848364,3.0,1837.8,1837.6,31.362]
[1743437848563,3.0,1837.8,1837.7,5.471]
[1743437849188,3.0,1837.8,1837.7,8.32074344]
[1743437849570,6.773959,1838.7,1837.7,8.32074344]
[1743437849571,3.61874295,1838.3,1837.9,5.44078]
[1743437849899,3.0,1838.2,1838.0,0.05440047]
[1743437850200,3.41801456,1838.4,1838.1,5.471]
[1743437850393,3.61874295,1838.3,1838.1,5.471]
[1743437850562,3.61874295,1838.3,1838.1,6.64523805]
[1743437851302,3.61874295,1838.2,1838.1,6.64523805]
[1743437851466,3.61874295,1838.2,1838.1,5.471]
[1743437852269,3.0,1838.2,1838.1,5.471]
[1743437852497,3.61874295,1838.5,1838.2,5.43999]
[1743437852695,0.7812,1838.6,1838.2,5.43999]
[1743437852696,3.61874295,1838.6,1838.2,5.43997]
[1743437852895,3.61874295,1838.5,1838.3,0.8037]
[1743437853066,3.61874295,1838.6,1838.3,6.24348]
[1743437853271,3.61874295,1838.6,1838.4,6.063808]
[1743437853498,6.61874295,1838.6,1838.5,5.472]
[1743437853706,3.61874295,1838.6,1838.5,5.472]
[1743437856985,3.0,1838.5,1838.3,32.1707]
[1743437857175,3.61874295,1838.4,1838.3,31.367]
[1743437857376,3.61874295,1838.4,1838.3,36.838]
[1743437858408,3.61874295,1838.4,1838.3,38.47308496]
[1743437858799,3.61874295,1838.4,1838.3,31.367]
[1743437858998,3.61874295,1838.4,1838.3,36.838]
[1743437859319,6.61874295,1838.5,1838.3,36.838]
[1743437861794,6.61874295,1838.7,1838.4,5.43931]
[1743437861983,3.61874295,1838.7,1838.5,0.543931]
[1743437862399,3.0,1838.6,1838.4,0.8001]
[1743437862609,3.61874295,1838.5,1838.3,36.838]
[1743437864396,3.61874295,1838.5,1838.3,5.471]
[1743437868226,3.61874295,1838.5,1838.1,31.365]
[1743437868227,8.43951,1838.4,1838.1,31.365]
[1743437868431,12.05868295,1838.3,1838.2,5.47]
[1743437868627,12.90263395,1838.3,1838.2,5.47]
[1743437869230,9.2494,1838.2,1838.1,36.835]
[1743437870228,9.2494,1838.2,1838.1,31.365]
[1743437870400,11.1646034,1838.2,1838.1,36.835]
[1743437870597,3.8093,1838.2,1838.1,36.835]
[1743437870808,3.0,1838.2,1838.1,36.835]
[1743437871726,8.4401,1838.2,1838.1,36.835]
[1743437872129,8.4401,1838.2,1838.1,31.365]
[1743437872335,9.6500471,1838.2,1838.1,31.365]
[1743437872535,6.24713,1837.8,1837.3,43.02148]
[1743437872839,3.61874295,1837.7,1837.4,5.47]
[1743437873002,3.61874295,1837.7,1837.3,37.57873]
[1743437873205,3.61874295,1837.6,1837.4,5.52441648]
[1743437873433,3.61874295,1837.7,1837.4,5.52441648]
[1743437873730,3.61874295,1837.5,1837.3,31.368]
[1743437873930,3.61874295,1837.5,1837.4,5.47]
[1743437874103,6.61874295,1837.5,1837.4,5.47]
[1743437874304,3.0,1837.5,1837.4,5.47]
[1743437874620,3.0,1837.5,1837.3,31.368]
[1743437874822,3.0,1837.5,1837.3,40.491729]
[1743437875137,3.0,1837.5,1837.4,5.471]
[1743437877813,3.0,1837.5,1837.3,35.049089]
[1743437878016,3.0,1837.5,1837.4,5.471]
[1743437878234,3.0,1837.5,1837.4,6.229]
[1743437878448,3.0,1837.5,1837.4,11.4453449]
[1743437879420,3.61874295,1837.8,1837.5,5.44215]
[1743437879625,3.0,1837.7,1837.6,5.471]
[1743437879824,6.61874295,1837.7,1837.6,5.471]
[1743437880660,3.0,1837.7,1837.6,5.471]
[1743437880821,3.61874295,1837.7,1837.6,6.562305]
[1743437881027,3.61874295,1837.7,1837.6,5.471]
[1743437882636,6.61874295,1837.7,1837.6,5.471]
[1743437884070,12.86552295,1837.7,1837.6,5.471]
[1743437885379,6.61874295,1837.7,1837.6,5.471]
[1743437885730,12.06032295,1837.7,1837.6,5.471]
[1743437886130,13.81048425,1837.7,1837.6,5.471]
[1743437886330,19.25228425,1837.7,1837.3,31.368]
[1743437886533,6.61874295,1837.5,1837.4,5.471]
[1743437887735,3.0,1837.5,1837.4,5.471]
[1743437887937,3.61874295,1837.8,1837.5,6.23084]
[1743437888348,8.44083,1838.0,1837.5,0.7889]
[1743437888349,3.0,1837.6,1837.5,0.7889]
[1743437888543,3.0,1837.6,1837.5,1.959126]
[1743437889541,6.61874295,1837.6,1837.5,1.170226]
[1743437890371,6.61874295,1837.6,1837.4,5.471]
[1743437890540,3.61874295,1837.5,1837.4,5.471]
[1743437890732,6.61874295,1837.6,1837.4,5.471]
[1743437891169,3.61874295,1837.8,1837.6,5.44159]
[1743437891465,3.61874295,1837.9,1837.7,5.44131]
[1743437891636,11.65287,1838.1,1837.8,5.47]
[1743437891836,6.61874295,1837.9,1837.8,5.47]
[1743437893870,3.0,1837.8,1837.5,6.26361]
[1743437894066,6.61874295,1837.8,1837.6,5.47]
[1743437894266,6.61874295,1837.8,1837.6,10.91186]
[1743437894471,6.61874295,1837.8,1837.7,1.091186]
[1743437894870,0.4041471,1838.2,1837.7,1.091186]
[1743437894871,0.4041471,1838.2,1837.9,5.44072]
[1743437895171,5.43941,1838.5,1838.0,10.91046]
[1743437895375,3.61874295,1838.2,1838.0,10.91046]
[1743437895571,3.61874295,1838.4,1838.1,6.22799]
[1743437895780,3.61874295,1838.4,1838.2,0.622799]
[1743437896070,5.43873,1838.7,1838.2,0.6771946]
[1743437896276,5.43873,1838.7,1838.2,6.062789]
[1743437896277,3.0,1838.4,1838.2,6.062789]
[1743437896451,3.61874295,1838.5,1838.3,5.4398]
[1743437896647,6.22787,1838.8,1838.4,5.47]
[1743437896857,6.24512,1839.0,1838.5,0.81059144]
[1743437897168,3.61874295,1838.6,1838.5,0.7562]
[1743437897842,3.61874295,1838.8,1838.6,5.43881]
[1743437898046,6.61874295,1838.7,1838.6,5.43881]
[1743437898257,6.61874295,1838.7,1838.6,5.49319344]
[1743437898457,3.61874295,1838.8,1838.6,6.60765734]
[1743437898667,3.61874295,1839.0,1838.8,5.43805]
[1743437898856,3.61874295,1839.0,1838.9,10.90703]
[1743437899157,3.61874295,1839.0,1838.9,5.469]
[1743437899356,6.61874295,1839.0,1838.9,5.469]
[1743437899644,6.61874295,1839.0,1838.9,6.635825]
[1743437899849,3.61874295,1839.0,1838.9,6.635825]
[1743437901149,3.61874295,1839.0,1838.9,5.469]
[1743437901675,6.61874295,1839.0,1838.9,5.469]
[1743437901844,12.05647295,1839.0,1838.9,5.469]
[1743437902376,6.19518,1838.8,1838.4,0.7838]
[1743437902674,3.61874295,1838.6,1838.5,5.468]
[1743437902975,6.61874295,1838.6,1838.5,5.468]
[1743437904348,6.61874295,1838.6,1838.5,5.467]
[1743437907784,3.0,1838.6,1838.5,6.8144]
[1743437907978,6.61874295,1838.6,1838.5,6.2677]
[1743437908954,6.61874295,1838.6,1838.5,5.467]
[1743437911555,12.05766295,1838.6,1838.5,5.467]
[1743437911872,6.61874295,1838.6,1838.5,5.467]
[1743437912186,3.61874295,1838.8,1838.6,5.43864]
[1743437912390,6.61874295,1838.8,1838.7,0.543864]
[1743437912554,3.61874295,1838.8,1838.7,0.543864]
[1743437913085,3.61874295,1838.8,1838.5,11.72906]
[1743437913389,3.61874295,1838.8,1838.5,17.16814]
[1743437913582,3.61874295,1838.8,1838.5,0.8229]
[1743437913789,3.61874295,1838.8,1838.6,5.466]
[1743437913982,3.61874295,1838.8,1838.6,10.90488]
[1743437914486,3.61874295,1838.8,1838.6,6.638778]
[1743437915261,3.61874295,1838.8,1838.6,12.077628]
[1743437915700,3.61874295,1838.8,1838.6,17.516478]
[1743437916088,3.61874295,1838.8,1838.6,12.077628]
[1743437916691,3.61874295,1838.8,1838.6,12.077588]
[1743437916860,3.61874295,1838.8,1838.7,1.2077588]
[1743437919397,3.61874295,1838.8,1838.6,12.077588]
[1743437920368,3.61874295,1838.8,1838.6,17.516378]
[1743437920769,3.61874295,1838.8,1838.6,12.077568]
[1743437920971,3.61874295,1838.8,1838.6,12.077558]
[1743437921998,6.60171389,1839.1,1838.6,12.077558]
[1743437921999,6.61874295,1838.9,1838.8,0.771]
[1743437925602,6.61874295,1838.9,1838.7,0.7711]
[1743437925797,6.61874295,1838.9,1838.7,2.5998518]
[1743437926304,6.61874295,1838.9,1838.7,8.0383818]
[1743437926621,3.0,1838.9,1838.8,5.43832]
[1743437926780,6.16856158,1839.7,1838.8,5.43832]
[1743437926781,0.8036,1839.6,1839.3,5.43673]
[1743437926971,6.23969,1839.6,1839.4,5.463]
[1743437927177,3.61874295,1839.5,1839.2,5.43709]
[1743437927482,6.23956,1839.6,1839.5,5.463]
[1743437927691,9.23956,1839.6,1839.5,5.463]
[1743437928094,6.23956,1839.6,1839.5,5.463]
[1743437928506,12.85830295,1839.6,1839.5,5.463]
[1743437928801,14.68770125,1839.6,1839.5,5.463]
[1743437929305,15.09428741,1839.6,1839.5,5.463]
[1743437935524,5.43736,1839.2,1839.1,5.461]
[1743437935811,12.86970295,1839.2,1839.1,5.461]
[1743437936510,9.86970295,1839.2,1839.1,5.461]
[1743437936995,3.61874295,1839.2,1839.1,5.461]
[1743437937201,9.05588295,1839.2,1839.1,5.461]
[1743437940012,3.61874295,1839.2,1839.1,5.461]
[1743437940376,9.05588295,1839.2,1839.1,5.461]
[1743437940764,9.88558295,1839.2,1839.1,5.461]
[1743437941198,5.43748,1839.1,1839.0,5.461]
[1743437941593,9.05559295,1839.3,1839.0,5.461]
[1743437942002,3.61874295,1839.1,1839.0,5.461]
[1743437942576,3.61874295,1839.1,1839.0,10.89873]
[1743437942780,3.61874295,1839.1,1839.0,12.532392]
[1743437943210,3.61874295,1839.3,1839.1,0.7916]
[1743437943506,3.61874295,1839.2,1839.1,0.7916]
[1743437943806,3.61874295,1839.2,1839.0,7.094662]
[1743437944010,3.61874295,1839.1,1839.0,5.461]
[1743437944611,5.43687,1839.3,1839.0,5.461]
[1743437944812,3.61874295,1839.2,1839.0,5.461]
[1743437945110,3.61874295,1839.2,1839.0,10.89873]
[1743437945111,6.61874295,1839.2,1839.0,10.89873]
[1743437945485,6.61874295,1839.2,1839.0,5.461]
[1743437945682,6.61874295,1839.2,1839.0,7.174654]
[1743437946290,6.61874295,1839.2,1839.0,12.612374]
[1743437947379,6.61874295,1839.2,1839.0,12.612354]
[1743437947812,6.61874295,1839.2,1839.0,18.049944]
[1743437947989,8.84255616,1839.6,1839.1,6.32395954]
[1743437948310,9.05441295,1839.7,1839.3,6.26904]
[1743437948511,3.66874295,1839.9,1839.5,0.8322]
[1743437948816,3.0,1839.7,1839.5,0.8322]
[1743437948999,9.05415295,1839.8,1839.5,0.8322]
[1743437949400,3.0,1839.7,1839.5,0.8322]
[1743437949607,3.61874295,1839.8,1839.5,7.44128]
[1743437949826,3.66874295,1839.9,1839.6,5.49028416]
[1743437949984,0.05,1839.9,1839.7,37.61968]
[1743437950181,0.05,1839.9,1839.8,11.78091804]
[1743437950383,0.05,1839.9,1839.8,17.1334098]
[1743437952998,1e-05,1839.9,1839.8,17.1334098]
[1743437953524,0.06055017,1840.9,1840.6,0.8291]
[1743437953713,0.06055017,1840.9,1840.7,10.89055]
[1743437953914,0.06055017,1840.9,1840.7,16.32311]
[1743437954133,0.06055017,1840.9,1840.7,10.89055]
[1743437954299,0.06055017,1840.9,1840.8,6.26152]
[1743437955432,0.06055017,1840.9,1840.8,6.77132]
[1743437956433,0.06055017,1840.9,1840.8,6.82562928]
[1743437956628,0.06055017,1840.9,1840.8,6.77132]
[1743437956835,0.06055017,1840.9,1840.8,9.0224891]
[1743437956836,1.7e-07,1840.9,1840.8,9.0224891]
[1743437957404,1.7e-07,1840.9,1840.8,9.0767883]
[1743437957598,1.7e-07,1840.9,1840.8,9.0224891]
[1743437958227,1.7e-07,1840.9,1840.8,14.4784891]
[1743437959306,2.97282017,1841.5,1841.2,6.23413]
[1743437959509,2.97282017,1841.5,1841.3,6.077413]
[1743437959906,4.44744295,1841.4,1841.3,5.454]
[1743437960224,9.87809295,1841.4,1841.3,5.454]
[1743437961339,5.43195,1841.0,1840.7,4.849821]
[1743437961635,3.61874295,1840.9,1840.8,5.453]
[1743437963538,3.0,1841.0,1840.8,5.453]
[1743437964240,8.43193,1841.0,1840.8,5.453]
[1743437964913,3.0,1841.0,1840.8,5.453]
[1743437965832,3.0,1841.0,1840.8,7.08085468]
[1743437966027,3.0,1841.0,1840.8,7.0265361]
[1743437967215,3.0,1841.0,1840.8,12.4589461]
[1743437967815,3.0,1841.0,1840.8,5.453]
[1743437968129,3.0,1841.0,1840.8,10.8853]
[1743437968442,3.0,1841.0,1840.9,5.43212]
[1743437968745,3.0,1841.0,1840.8,10.8853]
[1743437968940,5.43099,1841.3,1840.9,6.18749]
[1743437969108,9.04944295,1841.4,1841.0,10.91776954]
[1743437969314,3.0,1841.3,1841.1,5.43143]
[1743437969508,3.0,1841.3,1841.0,0.05430954]
[1743437969509,3.0,1841.3,1841.2,5.452]
[1743437969742,12.84538295,1841.3,1841.2,5.452]
[1743437969960,15.25623738,1841.3,1841.2,5.452]
[1743437970432,5.43159,1841.1,1840.7,6.19305]
[1743437970747,8.43212,1840.9,1840.8,5.452]
[1743437970919,3.0,1840.9,1840.8,5.452]
[1743437971343,8.43212,1840.9,1840.8,5.452]
[1743437971549,5.43257,1840.8,1840.6,31.346]
[1743437971745,3.0,1840.8,1840.7,5.452]
[1743437971946,3.61874295,1840.9,1840.7,5.452]
[1743437972120,6.61874295,1840.9,1840.7,5.452]
[1743437973132,6.61874295,1840.9,1840.7,10.88465]
[1743437973338,6.61874295,1840.9,1840.7,10.31401036]
[1743437974146,3.0,1840.9,1840.8,0.8297]
[1743437974751,3.0,1840.9,1840.7,10.31401036]
[1743437975048,3.0,1840.9,1840.8,5.43242]
[1743437975345,3.0,1840.9,1840.7,15.74663036]
[1743437975535,3.0,1840.9,1840.7,47.06963036]
[1743437975934,3.0,1840.9,1840.7,52.50225036]
[1743437976134,3.61874295,1841.0,1840.8,10.68264504]
[1743437976451,3.0,1841.0,1840.9,5.43212]
[1743437976948,3.61874295,1841.2,1840.9,6.25711]
[1743437977130,3.61874295,1841.2,1841.0,5.43168]
[1743437977330,6.61874295,1841.2,1841.1,5.451]
[1743437977548,3.61874295,1841.2,1841.1,5.451]
[1743437977749,3.61874295,1841.4,1841.1,10.88253]
[1743437977938,3.61874295,1841.4,1841.1,10.88242]
[1743437978247,3.61874295,1841.4,1841.2,10.8622]
[1743437978463,3.61874295,1841.4,1841.2,7.12207902]
[1743437978635,6.61874295,1841.4,1841.3,5.43094]
[1743437978835,6.61874295,1841.4,1841.2,13.26809102]
[1743437979437,6.61874295,1841.4,1841.3,5.43094]
[1743437979837,6.61874295,1841.4,1841.2,7.83697102]
[1743437980038,6.61874295,1841.4,1841.3,5.45]
[1743437980240,6.61874295,1841.4,1841.3,11.65014]
[1743437980650,3.0,1841.4,1841.3,6.2192]
[1743437980849,6.61874295,1841.4,1841.3,6.2192]
[1743437981842,3.0,1841.4,1841.3,11.65014]
[1743437982041,3.0,1841.4,1841.3,13.5219381]
[1743437983974,3.0,1841.4,1841.3,8.0909981]
[1743437984176,3.0,1841.4,1841.3,13.5219381]
[1743437984583,3.0,1841.5,1841.3,13.5218381]
[1743437984743,3.0,1841.5,1841.3,12.7526381]
[1743437984939,3.0,1841.5,1841.4,1.27526381]
[1743437987373,0.8548,1841.9,1841.5,0.7559]
[1743437987675,3.61874295,1841.7,1841.6,5.43006]
[1743437987843,6.61874295,1841.7,1841.6,5.449]
[1743437988758,6.61874295,1841.7,1841.6,5.9939]
[1743437990375,6.61874295,1841.7,1841.6,5.449]
[1743437994185,6.61874295,1841.7,1841.5,31.313]
[1743437994373,6.61874295,1841.7,1841.6,5.447]
[1743437994575,12.04859295,1841.7,1841.6,5.447]
[1743437997308,9.21242,1841.6,1841.3,31.312]
[1743437997601,5.43044,1841.5,1841.4,5.447]
[1743437998699,12.04918295,1841.5,1841.4,5.447]
[1743437999665,8.43044,1841.5,1841.4,5.447]
[1743438000713,3.0,1841.5,1841.4,10.87765]
[1743438001307,3.0,1841.5,1841.4,5.447]
[1743438001506,3.0,1841.5,1841.4,9.748701]
[1743438001718,8.43035,1841.5,1841.4,9.748701]
[1743438001912,9.21455,1841.5,1841.4,5.447]
[1743438002202,5.43065,1841.4,1841.3,31.312]
[1743438002505,3.61874295,1841.4,1841.3,36.758]
[1743438002708,9.04939295,1841.4,1841.3,36.758]
[1743438003826,12.04939295,1841.4,1841.3,31.312]
[1743438004026,12.03439295,1841.4,1841.3,36.758]
[1743438004894,12.83469295,1841.4,1841.3,31.312]
[1743438005228,14.66119725,1841.4,1841.3,31.312]
[1743438005432,12.83469295,1841.4,1841.3,31.312]
[1743438006034,13.24476254,1841.4,1841.3,31.312]
[1743438006187,8.43094,1841.3,1841.2,5.446]
[1743438006383,3.0,1841.0,1840.7,0.7996]
[1743438006585,3.61874295,1841.1,1841.0,5.446]
[1743438006824,3.61874295,1841.1,1841.0,10.87783]
[1743438006984,3.61874295,1841.1,1841.0,5.446]
[1743438007517,9.05027295,1841.1,1841.0,5.446]
[1743438007687,3.0,1841.0,1840.7,11.66489]
[1743438007884,3.61874295,1840.9,1840.8,1.166489]
[1743438008120,3.61874295,1840.9,1840.8,6.612489]
[1743438008830,5.43271,1840.7,1840.6,31.313]
[1743438009032,12.05145295,1840.7,1840.6,36.759]
[1743438009325,12.84765295,1840.7,1840.6,31.313]
[1743438011115,9.2121,1840.4,1840.3,5.446]
[1743438011287,5.434,1840.3,1840.2,5.446]
[1743438011689,5.84395511,1840.3,1840.2,5.446]
[1743438012127,5.4333,1840.6,1840.2,5.9906]
[1743438012128,5.43325,1840.6,1840.2,5.9906]
[1743438012334,6.61874295,1840.4,1840.3,0.7907]
[1743438012535,6.61874295,1840.4,1840.2,5.9906]
[1743438012731,12.05235295,1840.4,1840.2,5.9906]
[1743438012931,8.43389,1840.3,1840.2,5.9906]
[1743438013318,3.0,1840.3,1840.2,5.9906]
[1743438013527,1.21276466,1840.7,1840.4,5.43348]
[1743438013837,3.61874295,1840.5,1840.4,1.338148]
[1743438014031,5.43229,1840.9,1840.5,5.43319]
[1743438014236,3.61874295,1840.8,1840.6,5.447]
[1743438014438,9.05116295,1840.8,1840.6,5.447]
[1743438014804,8.43271,1840.7,1840.6,5.447]
[1743438015430,3.0,1840.7,1840.6,5.447]
[1743438015747,8.43271,1840.7,1840.6,5.447]
[1743438015961,3.0,1840.7,1840.6,5.447]
[1743438016106,8.43271,1840.7,1840.6,5.447]
[1743438016524,8.43301,1840.6,1840.0,0.7714]
[1743438016737,3.61874295,1840.2,1840.1,5.447]
[1743438016903,6.61874295,1840.2,1840.1,5.447]
[1743438021015,12.05293295,1840.2,1840.1,5.447]
[1743438021321,5.43461,1840.1,1839.9,31.315]
[1743438021514,8.43461,1840.1,1840.0,5.447]
[1743438021715,12.05335295,1840.1,1840.0,5.447]
[1743438022123,6.61874295,1840.1,1840.0,5.447]
[1743438023434,12.05322295,1840.1,1840.0,5.447]
[1743438024448,6.61874295,1840.1,1840.0,5.447]
[1743438024746,12.05322295,1840.1,1840.0,5.447]
[1743438026152,6.61874295,1840.1,1840.0,5.447]
[1743438026628,12.05322295,1840.1,1840.0,5.447]
[1743438027024,12.05322295,1840.1,1839.9,31.315]
[1743438027239,12.05322295,1840.1,1840.0,5.447]
[1743438029118,3.0,1840.0,1839.9,31.315]
[1743438029351,8.43478,1840.0,1839.9,36.762]
[1743438030424,8.43478,1840.0,1839.9,31.315]
[1743438030625,8.43478,1840.0,1839.9,36.762]
[1743438031461,8.43478,1840.0,1839.9,37.00749545]
[1743438032124,14.56672325,1840.0,1839.9,31.56049545]
[1743438032328,14.97706726,1840.0,1839.9,0.24549545]
[1743438032530,5.43655,1839.4,1839.3,5.447]
[1743438032731,9.05529295,1839.4,1839.3,5.6544743]
[1743438033138,9.05529295,1839.4,1839.3,0.2074743]
[1743438033425,5.43714,1839.2,1839.1,0.05]
[1743438033629,5.43714,1839.2,1839.1,5.497]
[1743438033630,3.61874295,1839.2,1839.1,5.497]
[1743438033862,8.43629,1839.5,1839.2,6.20854]
[1743438034046,3.61874295,1839.4,1839.2,6.20848]
[1743438034661,6.61874295,1839.4,1839.2,6.20848]
[1743438034861,6.61874295,1839.4,1839.3,0.18779904]
[1743438035066,12.05529295,1839.4,1839.3,0.18779904]
[1743438035860,5.43691,1839.3,1839.1,0.05]
[1743438036031,3.61874295,1839.2,1839.1,0.05]
[1743438036226,3.61874295,1839.2,1839.1,5.497]
[1743438036434,3.61874295,1839.2,1839.1,10.93444]
[1743438036659,3.61874295,1839.2,1839.1,5.497]
[1743438038429,9.05588295,1839.2,1839.1,5.497]
[1743438038863,17.1239132,1839.2,1839.1,0.05]
[1743438039038,17.8786132,1839.2,1839.1,5.497]
[1743438039235,17.8786132,1839.2,1839.1,0.05]
[1743438041274,3.0,1838.6,1838.4,0.7936]
[1743438041452,3.61874295,1838.5,1838.3,31.342]
[1743438041856,9.05809295,1838.5,1838.3,31.342]
[1743438042056,13.87819,1838.6,1838.3,31.342]
[1743438042299,8.43907,1838.6,1838.4,5.447]
[1743438042444,5.43926,1838.5,1838.4,5.448]
[1743438042639,3.0,1838.6,1838.4,5.448]
[1743438043361,3.61874295,1838.5,1838.4,5.448]
[1743438043562,3.0,1838.9,1838.5,0.783]
[1743438043763,3.0,1838.6,1838.5,6.22211]
[1743438045481,3.0,1838.6,1838.5,0.783]
[1743438048083,3.0,1838.6,1838.4,10.88749]
[1743438048282,3.0,1838.6,1838.5,5.43921]
[1743438048581,3.0,1838.6,1838.4,16.32683]
[1743438049077,5.43819,1838.9,1838.6,6.24308]
[1743438049078,3.0,1838.9,1838.6,6.24308]
[1743438049270,3.0,1838.7,1838.6,0.8042]
[1743438049475,6.61874295,1838.8,1838.7,5.43862]
[1743438050084,3.0,1838.8,1838.7,5.43862]
[1743438050376,6.61874295,1838.8,1838.6,6.24299]
[1743438050557,6.61874295,1838.8,1838.6,12.849995]
[1743438051285,6.61874295,1838.8,1838.6,7.411205]
[1743438051485,6.61874295,1838.8,1838.6,6.24299]
[1743438052281,6.61874295,1838.8,1838.5,5.43921]
[1743438053177,6.61874295,1838.8,1838.5,5.43906]
[1743438053773,6.61874295,1838.8,1838.5,10.87812]
[1743438053967,6.61874295,1838.8,1838.5,5.49344535]
[1743438054172,3.61874295,1838.6,1838.5,5.43906]
[1743438054382,3.61874295,1838.6,1838.5,10.88706]
[1743438054983,3.61874295,1838.6,1838.5,13.0798353]
[1743438055184,3.61874295,1838.6,1838.5,5.448]
[1743438055385,3.61874295,1838.6,1838.3,36.78178]
[1743438055576,3.8117,1838.6,1838.5,5.448]
[1743438055774,7.43044295,1838.6,1838.5,5.448]
[1743438057248,6.61874295,1838.6,1838.5,5.448]
[1743438059973,3.0,1838.6,1838.5,5.448]
[1743438060283,6.61874295,1838.6,1838.5,5.448]
[1743438060687,7.55168979,1838.6,1838.5,5.448]
[1743438063605,3.0,1838.6,1838.5,10.88721]
[1743438063803,4.95915951,1839.2,1838.9,5.43791]
[1743438063804,0.7515,1839.2,1838.9,5.43791]
[1743438064014,4.55168979,1839.2,1839.0,5.447]
[1743438064170,3.0,1839.1,1839.0,10.88459]
[1743438064501,4.55168979,1839.3,1839.0,12.51684]
[1743438064672,4.55168979,1839.3,1839.1,5.43735]
[1743438064875,0.7875,1839.6,1839.2,5.43714]
[1743438065065,4.55168979,1839.5,1839.2,5.43714]
[1743438065266,4.55168979,1839.3,1839.1,6.24499]
[1743438065501,7.55168979,1839.3,1839.2,0.624499]
[1743438065701,4.55168979,1839.3,1839.2,0.624499]
[1743438065990,4.55168979,1839.3,1839.2,6.061639]